bitfinex/quotes_SOLUSD_20230103
["timestamp","ask_amount","ask_price","bid_price","bid_amount"]
[1672763690957,56.54,13.278,13.263,11.08137784]
[1672763691172,30.0,13.277,13.263,11.08137784]
[1672763691381,56.55,13.276,13.263,11.08137784]
[1672763691820,30.0,13.277,13.263,11.08137784]
[1672763692020,86.54,13.277,13.263,11.08137784]
[1672763692878,23.6923,13.28,13.264,51.32]
[1672763693076,23.6923,13.28,13.265,20.0]
[1672763693290,23.6923,13.28,13.266,51.32]
[1672763693610,23.6923,13.28,13.266,11.08137784]
[1672763693807,23.6923,13.28,13.267,11.08137784]
[1672763694213,23.6923,13.28,13.27,40.45]
[1672763694426,23.6923,13.28,13.271,81.19905825]
[1672763694651,23.6923,13.28,13.271,92.28043609]
[1672763694862,23.6923,13.28,13.272,31.08137784]
[1672763695178,23.6923,13.28,13.273,11.08137784]
[1672763695603,86.53,13.279,13.247,135.67680345]
[1672763695912,86.53,13.279,13.25,36.32509653]
[1672763695913,112.6162,13.278,13.25,36.32509653]
[1672763696230,56.51,13.284,13.26,16.18]
[1672763696444,56.51,13.284,13.261,54.01]
[1672763696755,30.0,13.283,13.256,36.32509653]
[1672763696967,30.0,13.283,13.252,84.05]
[1672763696968,56.52,13.282,13.252,84.05]
[1672763697161,150.983,13.282,13.26,8.09]
[1672763697495,30.0,13.281,13.26,8.09]
[1672763697702,30.0,13.279,13.26,8.09]
[1672763697896,170.7128,13.278,13.26,40.43]
[1672763698107,114.1728,13.278,13.261,79.45906488]
[1672763698318,56.54,13.277,13.261,79.45906488]
[1672763698527,24.7872,13.281,13.263,30.0]
[1672763698733,24.7872,13.281,13.262,11.08137784]
[1672763698948,56.53,13.28,13.264,11.08137784]
[1672763699263,30.0,13.279,13.264,11.08137784]
[1672763699479,30.0,13.277,13.264,11.08137784]
[1672763699691,30.0,13.275,13.264,11.08137784]
[1672763700009,56.56,13.274,13.264,11.08137784]
[1672763700228,56.55,13.276,13.264,11.08137784]
[1672763700622,56.54,13.277,13.264,11.08137784]
[1672763700834,30.0,13.276,13.264,11.08137784]
[1672763701153,56.55,13.275,13.261,11.08137784]
[1672763701363,30.0,13.276,13.262,20.0]
[1672763701585,56.55,13.275,13.262,20.0]
[1672763701804,71.7683,13.277,13.264,30.0]
[1672763702210,71.7683,13.277,13.265,11.08137784]
[1672763702414,56.5,13.286,13.27,8.08]
[1672763702636,110.3861,13.284,13.271,72.94]
[1672763702863,110.3861,13.284,13.271,125.03731958]
[1672763703186,110.3861,13.284,13.272,52.09731958]
[1672763703365,110.3861,13.284,13.273,52.93]
[1672763703574,110.3861,13.284,13.273,105.02731958]
[1672763703799,0.00806364,13.288,13.284,112.59523429]
[1672763704010,331.42895054,13.302,13.297,0.06]
[1672763704212,331.42895054,13.302,13.298,52.84]
[1672763704410,331.19706331,13.302,13.299,12.97956269]
[1672763704624,331.19706331,13.302,13.298,0.00258184]
[1672763704848,419.78202282,13.301,13.293,0.06]
[1672763705065,30.0,13.3,13.293,0.06]
[1672763705468,30.0,13.3,13.292,0.06]
[1672763705899,56.45,13.299,13.281,125.89723413]
[1672763706102,56.45,13.299,13.27,192.37068662]
[1672763706103,30.0,13.298,13.273,122.93144577]
[1672763706314,56.46,13.297,13.279,34.20660362]
[1672763706644,56.46,13.297,13.281,155.89723413]
[1672763706855,71.7123,13.298,13.281,155.89723413]
[1672763707162,71.7123,13.298,13.29,8.09]
[1672763707383,24.8236,13.298,13.29,8.09]
[1672763707575,333.34202282,13.301,13.291,62.52660362]
[1672763707903,333.34202282,13.301,13.292,68.56966362]
[1672763708109,333.34202282,13.301,13.293,20.0]
[1672763708304,333.34202282,13.301,13.293,67.12028812]
[1672763708520,56.44,13.3,13.293,31.08137784]
[1672763708730,389.78202282,13.301,13.293,20.0]
[1672763709162,333.34202282,13.301,13.294,33.62186362]
[1672763709566,333.34202282,13.301,13.294,44.70324146]
[1672763709777,56.44,13.3,13.294,33.62186362]
[1672763710010,56.44,13.3,13.285,30.0]
[1672763710011,56.44,13.3,13.295,38.61292255]
[1672763710616,333.34202282,13.301,13.295,38.51224023]
[1672763710835,333.34202282,13.301,13.296,11.08137784]
[1672763711049,335.71528603,13.302,13.297,30.0]
[1672763711256,335.71528603,13.302,13.297,74.76081892]
[1672763711473,335.71528603,13.302,13.298,95.60278684]
[1672763711796,331.19706331,13.302,13.3,30.0]
[1672763712103,331.19706331,13.302,13.299,50.64423666]
[1672763712298,331.19706331,13.302,13.3,36.25267334]
[1672763712633,331.19706331,13.302,13.3,47.33405118]
[1672763712847,331.19706331,13.302,13.3,36.25267334]
[1672763713054,331.19706331,13.302,13.3,86.76313677]
[1672763713363,331.19706331,13.302,13.3,75.68175893]
[1672763713580,331.19706331,13.302,13.3,36.25267334]
[1672763714527,280.9539194,13.302,13.301,30.0]
[1672763714752,334.2702182,13.304,13.303,59.47]
[1672763715069,331.52158938,13.309,13.303,63.52033093]
[1672763715256,330.01902019,13.31,13.303,38.2242486]
[1672763715465,30.0,13.311,13.29,192.23068662]
[1672763715466,331.28098918,13.308,13.293,38.84270581]
[1672763715676,331.28098918,13.308,13.292,38.84270581]
[1672763715889,56.41,13.309,13.291,30.0]
[1672763715890,339.50105253,13.309,13.302,11.08137784]
[1672763716091,339.50105253,13.309,13.3,16.12]
[1672763716309,339.50105253,13.309,13.304,30.0]
[1672763716516,23.5018,13.318,13.304,30.0]
[1672763716517,495.14652266,13.305,13.304,30.0]
[1672763716839,61.92792027,13.313,13.312,306.28612253]
[1672763717050,61.92792027,13.313,13.312,317.26491321]
[1672763717377,30.0,13.34,13.312,317.26491321]
[1672763717378,56.29,13.336,13.313,74.32506314]
[1672763717578,30.0,13.34,13.322,30.0]
[1672763717579,0.0030981,13.323,13.322,30.0]
[1672763717902,0.0030981,13.323,13.322,122.5895157]
[1672763718209,0.0030981,13.323,13.322,134.10734127]
[1672763718422,0.0030981,13.323,13.322,145.18871911]
[1672763718631,281.42072623,13.341,13.323,30.0]
[1672763718825,0.00072623,13.341,13.34,174.95268419]
[1672763719037,142.10615476,13.342,13.34,23.07755626]
[1672763719248,142.10615476,13.342,13.34,84.53995293]
[1672763719473,142.10615476,13.342,13.341,53.07755626]
[1672763719685,142.10615476,13.342,13.341,23.07755626]
[1672763719894,142.10615476,13.342,13.34,23.07755626]
[1672763720103,142.10615476,13.342,13.336,23.07755626]
[1672763720317,142.10615476,13.342,13.341,11.08137784]
[1672763720509,142.10615476,13.342,13.337,23.07755626]
[1672763720715,142.10615476,13.342,13.338,30.0]
[1672763720930,142.10615476,13.342,13.341,64.17455184]
[1672763721156,142.10615476,13.342,13.336,23.07755626]
[1672763721356,142.10615476,13.342,13.335,34.1589341]
[1672763721771,142.10615476,13.342,13.334,23.07755626]
[1672763721995,142.10615476,13.342,13.328,37.67882687]
[1672763721996,30.0,13.341,13.328,37.67882687]
[1672763722193,56.28,13.34,13.331,11.08137784]
[1672763722402,56.28,13.34,13.321,30.0]
[1672763722622,142.10615476,13.342,13.33,8.09]
[1672763722623,56.27,13.341,13.33,8.09]
[1672763722831,142.10615476,13.342,13.331,20.0]
[1672763723044,142.10615476,13.342,13.333,3.34252119]
[1672763723265,142.10615476,13.342,13.331,20.0]
[1672763723456,142.10615476,13.342,13.329,20.0]
[1672763723457,198.37615476,13.342,13.329,20.0]
[1672763723665,30.0,13.341,13.328,20.0]
[1672763723876,198.37615476,13.342,13.327,20.0]
[1672763724091,76.78216637,13.342,13.325,7.88367127]
[1672763724435,30.0,13.341,13.328,11.08137784]
[1672763724649,56.28,13.34,13.321,86.36]
[1672763724846,20.51216637,13.342,13.341,53.71215538]
[1672763725173,0.22066086,13.341,13.33,40.47]
[1672763725364,0.22066086,13.341,13.336,11.08137784]
[1672763725794,0.22066086,13.341,13.323,30.0]
[1672763725795,56.28,13.34,13.32,8.11]
[1672763726010,56.28,13.34,13.325,11.08137784]
[1672763726748,0.22066086,13.341,13.326,56.33]
[1672763726956,0.22066086,13.341,13.327,30.0]
[1672763727153,0.22066086,13.341,13.328,56.33]
[1672763727487,0.22066086,13.341,13.329,30.0]
[1672763727688,0.22066086,13.341,13.33,56.32]
[1672763727906,0.22066086,13.341,13.331,20.0]
[1672763728314,0.22066086,13.341,13.33,11.08137784]
[1672763728528,56.28,13.34,13.33,11.08137784]
[1672763728852,56.28,13.34,13.329,11.08137784]
[1672763729052,56.49066086,13.341,13.329,11.08137784]
[1672763729461,0.22066086,13.341,13.329,11.08137784]
[1672763729667,0.22066086,13.341,13.325,56.34]
[1672763729883,115.74618374,13.34,13.324,11.08137784]
[1672763730318,30.0,13.338,13.32,56.36]
[1672763730528,56.29,13.337,13.319,56.36]
[1672763730720,115.75618374,13.337,13.319,56.36]
[1672763730931,114.05058374,13.337,13.321,11.08137784]
[1672763731148,30.0,13.336,13.322,1.65133956]
[1672763731374,86.28,13.339,13.322,1.65133956]
[1672763731562,57.76058374,13.337,13.323,11.08137784]
[1672763731772,30.0,13.337,13.324,1.65133956]
[1672763732103,30.0,13.335,13.313,1.65133956]
[1672763732309,56.3,13.334,13.313,1.65133956]
[1672763732525,30.0,13.333,13.313,12.7327174]
[1672763732724,30.0,13.331,13.314,11.08137784]
[1672763732944,56.32,13.33,13.315,1.65133956]
[1672763733351,56.32,13.33,13.312,306.28612253]
[1672763733557,56.32,13.33,13.312,317.36750037]
[1672763733978,56.32,13.33,13.313,11.08137784]
[1672763734427,56.31,13.332,13.314,30.0]
[1672763734616,56.3,13.334,13.315,56.38]
[1672763734838,93.4388,13.335,13.316,30.0]
[1672763735043,93.4388,13.335,13.318,30.0]
[1672763735241,93.4388,13.335,13.32,30.0]
[1672763735447,93.4388,13.335,13.319,56.36]
[1672763735661,56.3,13.334,13.318,11.08137784]
[1672763735874,56.3,13.334,13.313,125.92247043]
[1672763736098,30.0,13.333,13.313,125.92247043]
[1672763736306,56.31,13.332,13.314,41.08137784]
[1672763736517,93.4388,13.335,13.315,56.38]
[1672763736730,93.4388,13.335,13.315,67.46137784]
[1672763736938,93.4388,13.335,13.316,30.0]
[1672763737150,93.4388,13.335,13.317,76.37]
[1672763737366,93.4388,13.335,13.318,30.0]
[1672763737560,93.4388,13.335,13.319,76.36]
[1672763737984,93.4388,13.335,13.32,30.0]
[1672763738304,93.4388,13.335,13.322,30.0]
[1672763738627,93.4388,13.335,13.323,20.0]
[1672763738936,93.4388,13.335,13.323,76.35]
[1672763739152,58.43781054,13.334,13.323,20.0]
[1672763739460,58.43781054,13.334,13.313,30.0]
[1672763739461,8.09,13.33,13.314,56.39]
[1672763739675,8.09,13.33,13.315,20.0]
[1672763739866,57.74101054,13.329,13.314,20.0]
[1672763740085,56.3,13.334,13.316,11.08137784]
[1672763740287,22.8001,13.335,13.318,30.0]
[1672763740492,22.8001,13.335,13.319,76.36]
[1672763740714,76.78216637,13.342,13.32,30.0]
[1672763740926,76.78216637,13.342,13.321,56.36]
[1672763740927,8.03,13.34,13.321,56.36]
[1672763741134,59.31574387,13.335,13.322,20.0]
[1672763741350,0.20085773,13.334,13.324,30.0]
[1672763741555,0.20085773,13.334,13.326,30.0]
[1672763742089,0.20085773,13.334,13.325,76.34]
[1672763742282,0.20085773,13.334,13.326,56.33]
[1672763742488,0.20085773,13.334,13.327,20.0]
[1672763742702,0.20085773,13.334,13.328,30.0]
[1672763743348,0.20085773,13.334,13.329,20.0]
[1672763743556,0.20085773,13.334,13.318,56.37]
[1672763743760,0.20085773,13.334,13.321,56.36]
[1672763744096,76.78216637,13.342,13.322,41.08137784]
[1672763744402,76.78216637,13.342,13.326,1.16170877]
[1672763744613,20.51216637,13.342,13.327,56.33]
[1672763744821,20.51216637,13.342,13.328,20.0]
[1672763745141,20.51216637,13.342,13.329,30.0]
[1672763745338,20.51216637,13.342,13.33,56.32]
[1672763745551,20.51216637,13.342,13.331,20.0]
[1672763745754,20.51216637,13.342,13.332,56.31]
[1672763746299,20.51216637,13.342,13.333,20.0]
[1672763746500,20.51216637,13.342,13.333,31.08137784]
[1672763746695,20.51216637,13.342,13.334,11.08137784]
[1672763746899,20.51216637,13.342,13.335,20.0]
[1672763747226,56.2,13.359,13.346,19.43215343]
[1672763747548,127.3609,13.361,13.346,19.43215343]
[1672763747758,56.19,13.361,13.346,19.43215343]
[1672763748601,56.19,13.361,13.346,19.33647567]
[1672763749435,56.19,13.361,13.346,30.41785351]
[1672763749631,46.8130981,13.362,13.346,30.41785351]
[1672763749860,56.19,13.361,13.346,19.33647567]
[1672763750476,30.0,13.359,13.346,19.2407704]
[1672763750700,30.0,13.359,13.345,30.11055813]
[1672763750701,56.2,13.358,13.345,30.11055813]
[1672763750914,106.86060387,13.358,13.345,30.11055813]
[1672763751119,56.2,13.359,13.345,30.11055813]
[1672763751341,102.9930981,13.362,13.345,41.19193597]
[1672763751562,102.9930981,13.362,13.346,30.0]
[1672763751752,102.9930981,13.362,13.346,86.25]
[1672763752083,102.9930981,13.362,13.348,30.0]
[1672763752300,46.8130981,13.362,13.348,30.0]
[1672763752487,46.8130981,13.362,13.349,11.08137784]
[1672763753032,46.8130981,13.362,13.351,30.0]
[1672763753343,46.8130981,13.362,13.352,15.12423135]
[1672763753670,46.8130981,13.362,13.352,4.04285351]
[1672763753853,46.8130981,13.362,13.353,11.08137784]
[1672763754066,46.8130981,13.362,13.355,30.0]
[1672763754385,46.8130981,13.362,13.356,22.88617323]
[1672763754605,44.87573858,13.362,13.355,41.08137784]
[1672763754921,44.87573858,13.362,13.356,31.08137784]
[1672763756058,152.051,13.373,13.363,28.13240249]
[1672763756059,95.911,13.373,13.363,28.13240249]
[1672763756272,56.14,13.372,13.363,28.13240249]
[1672763756690,30.0,13.371,13.363,28.13240249]
[1672763756901,56.15,13.37,13.363,28.13240249]
[1672763757132,30.0,13.369,13.363,28.13240249]
[1672763757450,30.0,13.367,13.363,28.03216091]
[1672763757662,30.0,13.365,13.363,28.03216091]
[1672763758277,30.0,13.367,13.363,28.03216091]
[1672763758488,30.0,13.367,13.363,27.93191933]
[1672763758693,30.0,13.369,13.363,27.93191933]
[1672763759749,56.15,13.37,13.363,27.82583999]
[1672763759963,86.14,13.372,13.363,27.82583999]
[1672763760586,30.0,13.372,13.363,27.7197634]
[1672763760793,812.5,13.371,13.364,11.08137784]
[1672763761126,23.6139,13.373,13.365,20.0]
[1672763761737,23.6139,13.373,13.364,20.0]
[1672763762166,23.6139,13.373,13.365,56.17]
[1672763762362,23.6139,13.373,13.366,20.0]
[1672763763013,23.6139,13.373,13.365,20.0]
[1672763763420,23.6139,13.373,13.364,20.0]
[1672763763629,23.6139,13.373,13.364,31.08137784]
[1672763764065,23.6139,13.373,13.364,20.0]
[1672763764891,164.5785,13.379,13.374,35.58889182]
[1672763765101,46.8130981,13.381,13.374,35.58889182]
[1672763766777,56.11,13.38,13.374,35.58889182]
[1672763767104,30.0,13.379,13.374,35.58889182]
[1672763767525,56.12,13.378,13.374,0.00889182]
[1672763767739,30.0,13.377,13.374,0.00889182]
[1672763767945,30.0,13.375,13.374,0.00889182]
[1672763768150,812.49110818,13.37,13.352,37.67882687]
[1672763768364,33.53852611,13.368,13.363,0.0097634]
[1672763768565,30.0,13.367,13.363,0.0097634]
[1672763768777,42.63841484,13.365,13.363,0.0097634]
[1672763768987,86.17,13.364,13.363,0.0097634]
[1672763769427,105.61151953,13.364,13.363,0.0097634]
[1672763769617,56.17,13.364,13.363,0.0097634]
[1672763769827,56.13,13.374,13.363,56.1897634]
[1672763770036,19.77222065,13.376,13.363,0.0097634]
[1672763770274,188.2349,13.378,13.363,0.0097634]
[1672763771090,42.92997782,13.377,13.363,0.0097634]
[1672763771309,42.92997782,13.377,13.364,56.17]
[1672763771519,30.0,13.377,13.365,20.0]
[1672763772350,72.92997782,13.379,13.365,20.0]
[1672763774471,56.11,13.38,13.365,20.0]
[1672763774685,30.0,13.38,13.366,56.17]
[1672763774875,76.8130981,13.381,13.367,20.0]
[1672763775085,30.0,13.38,13.368,56.16]
[1672763775297,30.0,13.38,13.367,76.16]
[1672763775502,46.8130981,13.381,13.367,20.0]
[1672763775742,46.8130981,13.381,13.368,56.16]
[1672763775952,46.8130981,13.381,13.369,20.0]
[1672763776140,46.8130981,13.381,13.37,56.15]
[1672763776350,46.8130981,13.381,13.364,56.17]
[1672763776571,46.8130981,13.381,13.368,11.08137784]
[1672763777105,46.8130981,13.381,13.369,76.15]
[1672763777505,46.8130981,13.381,13.369,87.23137784]
[1672763780249,46.8130981,13.381,13.37,8.06]
[1672763780443,46.8130981,13.381,13.371,76.14]
[1672763780662,46.8130981,13.381,13.371,87.22137784]
[1672763780882,46.8130981,13.381,13.372,11.08137784]
[1672763781196,46.8130981,13.381,13.373,20.0]
[1672763781415,46.8130981,13.381,13.375,30.0]
[1672763781618,46.8130981,13.381,13.376,76.12]
[1672763781937,46.8130981,13.381,13.376,87.20137784]
[1672763782250,21.8130981,13.381,13.377,11.08137784]
[1672763782457,21.8130981,13.381,13.378,56.12]
[1672763782672,21.8130981,13.381,13.379,30.0]
[1672763782863,21.8130981,13.381,13.38,56.11]
[1672763783075,0.0030981,13.381,13.38,56.11]
[1672763783286,79.0513,13.406,13.385,0.0569019]
[1672763783510,56.02,13.4,13.385,0.0569019]
[1672763783724,44.3130981,13.401,13.385,11.13827974]
[1672763784144,44.3130981,13.401,13.386,20.0]
[1672763784338,44.3130981,13.401,13.386,76.08]
[1672763784547,44.3130981,13.401,13.387,11.08137784]
[1672763784758,44.3130981,13.401,13.389,30.0]
[1672763784970,44.3130981,13.401,13.39,79.6092229]
[1672763785189,44.3130981,13.401,13.391,30.0]
[1672763785387,44.3130981,13.401,13.392,59.5992229]
[1672763785601,44.3130981,13.401,13.394,30.0]
[1672763785812,44.3130981,13.401,13.395,20.0]
[1672763786245,44.3130981,13.401,13.396,11.08137784]
[1672763786447,44.3130981,13.401,13.397,20.0]
[1672763786665,44.3130981,13.401,13.398,30.0]
[1672763786980,44.3130981,13.401,13.398,41.08137784]
[1672763787189,30.0,13.417,13.398,41.08137784]
[1672763787190,55.93,13.422,13.402,62.04938555]
[1672763787392,38.09,13.43,13.402,62.04938555]
[1672763787393,109.4285,13.418,13.403,20.0]
[1672763787594,55.94,13.419,13.403,20.0]
[1672763787595,55.94,13.419,13.404,30.0]
[1672763787802,55.94,13.419,13.405,20.0]
[1672763788012,55.94,13.419,13.403,20.0]
[1672763789605,55.94,13.419,13.402,62.04938555]
[1672763789606,61.82296739,13.418,13.402,62.04938555]
[1672763789915,85.95,13.417,13.402,62.04938555]
[1672763790128,85.95,13.417,13.402,0.00938555]
[1672763790129,20.0,13.416,13.402,0.00938555]
[1672763790332,30.0,13.414,13.402,0.00938555]
[1672763790545,55.61905408,13.401,13.37,8.03]
[1672763790764,35.01426385,13.398,13.37,8.03]
[1672763791073,30.0,13.396,13.373,30.0]
[1672763791291,56.04,13.395,13.374,56.13]
[1672763791509,30.0,13.394,13.375,30.0]
[1672763791686,76.01180113,13.393,13.375,30.0]
[1672763791902,53.02812462,13.394,13.382,11.14137784]
[1672763792234,55.99,13.409,13.382,0.06]
[1672763792435,106.03,13.399,13.382,0.06]
[1672763792641,100.23578154,13.398,13.382,0.06]
[1672763792846,56.04,13.397,13.382,0.06]
[1672763793063,30.0,13.396,13.382,0.06]
[1672763793367,56.04,13.395,13.382,0.06]
[1672763793595,30.0,13.394,13.382,0.06]
[1672763793804,56.05,13.393,13.382,0.06]
[1672763794017,99.64894795,13.393,13.382,0.06]
[1672763794443,56.03,13.398,13.383,11.08137784]
[1672763794644,114.6193,13.4,13.384,56.09]
[1672763794859,156.92584795,13.4,13.383,56.09]
[1672763795052,86.03,13.399,13.382,0.06]
[1672763795487,131.99630072,13.399,13.382,0.06]
[1672763795926,30.0,13.398,13.382,0.06]
[1672763796137,56.04,13.397,13.382,20.06]
[1672763796447,30.0,13.407,13.386,67.16137784]
[1672763796657,30.0,13.407,13.387,20.0]
[1672763796852,41.74170987,13.403,13.389,30.0]
[1672763797062,41.74170987,13.403,13.39,76.07]
[1672763797287,109.7055,13.408,13.39,76.07]
[1672763797500,41.74170987,13.407,13.39,72.33932557]
[1672763798336,110.978,13.41,13.39,72.33932557]
[1672763798545,54.47143749,13.414,13.391,30.0]
[1672763798761,55.97,13.413,13.392,56.06]
[1672763798974,55.95,13.417,13.392,56.06]
[1672763799165,38.43174196,13.414,13.393,20.0]
[1672763799376,55.97,13.413,13.394,56.05]
[1672763799600,30.0,13.412,13.395,20.0]
[1672763799801,70.77174196,13.412,13.396,56.04]
[1672763800022,44.75840863,13.411,13.397,20.0]
[1672763800232,55.98,13.41,13.397,20.0]
[1672763800440,30.0,13.409,13.397,20.0]
[1672763800640,84.39517082,13.409,13.388,56.07]
[1672763800958,35.59542066,13.407,13.37,37.67882687]
[1672763801172,30.0,13.405,13.381,11.08137784]
[1672763801375,91.60542066,13.404,13.381,11.08137784]
[1672763801581,30.0,13.403,13.375,30.0]
[1672763801796,91.60542066,13.402,13.381,11.08137784]
[1672763802016,30.0,13.401,13.381,11.08137784]
[1672763802224,91.61542066,13.4,13.381,11.08137784]
[1672763802549,61.90912177,13.402,13.386,11.08137784]
[1672763802741,30.0,13.401,13.386,67.16137784]
[1672763802953,61.90912177,13.4,13.386,67.16137784]
[1672763803268,30.0,13.405,13.386,67.16137784]
[1672763803269,56.01,13.404,13.387,11.08137784]
[1672763803479,30.0,13.405,13.388,56.07]
[1672763803902,53.7078551,13.404,13.389,20.0]
[1672763804212,30.0,13.405,13.39,67.15137784]
[1672763804425,30.0,13.405,13.391,20.0]
[1672763804650,30.0,13.405,13.392,56.06]
[1672763804865,81.0532551,13.405,13.393,20.0]
[1672763805061,30.0,13.405,13.393,20.0]
[1672763805483,111.9039,13.408,13.393,31.08137784]
[1672763805692,30.0,13.407,13.393,31.08137784]
[1672763805900,30.0,13.407,13.393,11.08137784]
[1672763806103,30.0,13.405,13.384,56.09]
[1672763806321,30.0,13.403,13.388,11.08137784]
[1672763806531,56.01,13.402,13.388,11.08137784]
[1672763807062,55.99,13.407,13.39,38.09]
[1672763807274,30.0,13.407,13.391,56.06]
[1672763807496,85.99,13.407,13.388,11.08137784]
[1672763807802,133.70052177,13.407,13.388,11.08137784]
[1672763808119,85.99,13.407,13.388,11.08137784]
[1672763808322,85.99,13.407,13.389,56.07]
[1672763808526,85.99,13.407,13.388,11.08137784]
[1672763808731,85.99,13.407,13.39,11.08137784]
[1672763808944,85.99,13.407,13.391,20.0]
[1672763809151,127.57884984,13.407,13.388,56.07]
[1672763809363,127.57884984,13.407,13.384,56.09]
[1672763809573,127.57884984,13.407,13.385,20.0569019]
[1672763809791,127.57884984,13.407,13.385,11.13827974]
[1672763810000,127.57884984,13.407,13.386,20.0]
[1672763810198,127.57884984,13.407,13.385,11.13827974]
[1672763810636,127.57884984,13.407,13.385,0.0569019]
[1672763810846,85.99,13.407,13.385,0.0569019]
[1672763811372,128.01304984,13.407,13.385,0.0569019]
[1672763811583,55.99,13.407,13.386,67.16137784]
[1672763811773,46.07839575,13.406,13.387,30.0]
[1672763811988,76.07839575,13.406,13.388,56.07]
[1672763812319,102.91900901,13.405,13.388,56.07]
[1672763812527,30.0,13.404,13.386,56.08]
[1672763812724,76.75872908,13.404,13.387,20.0]
[1672763812930,46.75872908,13.403,13.388,56.07]
[1672763813471,94.46925085,13.403,13.388,56.07]
[1672763813681,30.0,13.402,13.388,56.07]
[1672763813889,79.79206241,13.402,13.387,20.0]
[1672763814095,110.75206241,13.401,13.388,20.0]
[1672763814303,30.0,13.4,13.385,0.0569019]
[1672763814512,56.03,13.399,13.385,0.0569019]
[1672763814729,30.0,13.398,13.385,0.0569019]
[1672763815044,56.04,13.397,13.385,0.0569019]
[1672763815237,25.19201302,13.395,13.385,0.0569019]
[1672763815452,30.0,13.393,13.385,0.0569019]
[1672763815664,32.3514532,13.391,13.385,0.0569019]
[1672763815869,63.30264673,13.389,13.385,0.0569019]
[1672763816088,33.30264673,13.387,13.385,0.0569019]
[1672763816298,89.38264673,13.386,13.385,0.0569019]
[1672763816500,148.38265386,13.386,13.385,0.0569019]
[1672763816931,89.38264673,13.386,13.385,0.0569019]
[1672763817139,199.21742779,13.386,13.385,0.0569019]
[1672763817568,30.0,13.385,13.366,93.84882687]
[1672763817781,96.41119773,13.384,13.366,56.17]
[1672763817996,30.0,13.383,13.366,56.17]
[1672763818202,42.15493244,13.382,13.366,56.17]
[1672763818415,42.15493244,13.382,13.366,41.08137784]
[1672763818733,42.15493244,13.384,13.368,30.0]
[1672763818918,42.15493244,13.384,13.369,56.15]
[1672763819129,47.07900713,13.385,13.369,67.23137784]
[1672763819340,119.23393957,13.384,13.369,56.15]
[1672763819547,119.23393957,13.384,13.369,11.08137784]
[1672763819762,119.23393957,13.384,13.366,56.17]
[1672763819973,169.88238017,13.384,13.366,56.17]
[1672763820182,148.89337304,13.384,13.367,20.0]
[1672763820401,38.14,13.41,13.391,71.00489016]
[1672763820612,30.0,13.407,13.391,71.00489016]
[1672763820818,30.0,13.41,13.392,30.0]
[1672763821026,55.99,13.409,13.393,20.0]
[1672763821253,55.99,13.409,13.393,76.05]
[1672763821460,55.99,13.409,13.393,20.0]
[1672763821860,55.99,13.409,13.392,20.0]
[1672763822190,55.99,13.409,13.392,31.08137784]
[1672763822405,55.98,13.411,13.393,56.05]
[1672763822602,55.98,13.411,13.394,20.0]
[1672763823455,55.98,13.411,13.394,76.05]
[1672763823665,55.98,13.411,13.394,87.13137784]
[1672763823872,55.97,13.412,13.396,37.67882687]
[1672763824088,108.4856,13.416,13.397,86.04]
[1672763824293,108.4856,13.416,13.391,222.88001809]
[1672763824294,30.0,13.41,13.391,71.00489016]
[1672763824614,55.99,13.409,13.391,71.00489016]
[1672763824807,172.06737576,13.409,13.391,71.00489016]
[1672763825022,113.64772197,13.408,13.391,71.00489016]
[1672763825341,30.0,13.406,13.391,71.00489016]
[1672763825560,30.0,13.406,13.392,11.08137784]
[1672763825768,55.82464005,13.405,13.392,11.08137784]